bitfinex/quotes_ETHUSD_20241204
["timestamp","ask_amount","ask_price","bid_price","bid_amount"]
[1733339125847,2.6103,3831.0,3830.2,0.5202926]
[1733339126034,0.55,3830.8,3830.2,0.5202926]
[1733339126373,0.55,3830.8,3829.4,1.0741]
[1733339126542,2.63661773,3830.7,3829.6,2.61121]
[1733339126715,2.61069,3830.4,3829.4,1.0741]
[1733339126918,0.02611773,3830.5,3829.4,1.44266]
[1733339127101,0.9226,3830.6,3829.6,0.53292411]
[1733339127442,0.9226,3830.6,3829.6,3.14409411]
[1733339127627,8.79,3830.7,3830.0,2.61096]
[1733339127935,8.79,3830.7,3829.6,0.53292411]
[1733339127936,8.79,3830.7,3829.8,2.6111]
[1733339128136,0.9226,3831.5,3830.7,2.61042]
[1733339128443,0.9226,3831.5,3830.8,2.61041]
[1733339129148,0.9226,3831.8,3830.9,0.02610075]
[1733339129316,0.9226,3831.8,3830.9,2.58885177]
[1733339129656,0.9226,3831.8,3830.7,2.61048]
[1733339129853,2.15483,3831.8,3830.8,2.6104]
[1733339130002,2.15483,3831.8,3830.6,1.0535]
[1733339130003,2.15483,3831.8,3831.0,0.47269363]
[1733339130404,2.15483,3831.8,3831.0,3.08297363]
[1733339130638,2.15483,3831.8,3831.0,0.47269363]
[1733339130909,2.18094773,3831.8,3831.0,0.47269363]
[1733339131623,0.76381393,3831.7,3831.0,0.47269363]
[1733339131824,0.02611773,3831.6,3831.0,0.47269363]
[1733339132028,0.2614,3831.5,3831.0,0.47269363]
[1733339132669,0.2614,3831.9,3831.0,0.42269363]
[1733339132869,2.80869,3833.4,3831.0,0.42269363]
[1733339132870,0.2614,3832.2,3831.1,2.61021]
[1733339133031,3.830604,3832.1,3831.0,0.42269363]
[1733339133233,1.221074,3832.1,3831.2,2.61014]
[1733339133481,0.2814,3832.7,3831.1,0.8517]
[1733339133634,0.2814,3832.7,3831.1,0.87779847]
[1733339133635,0.02,3832.7,3831.1,0.87779847]
[1733339133833,0.02,3832.7,3832.1,0.8517]
[1733339134041,0.02611773,3832.8,3832.1,0.8517]
[1733339134240,0.2614,3832.5,3832.0,0.53387264]
[1733339134783,0.2614,3832.5,3831.5,2.60993]
[1733339135073,2.60935,3832.4,3831.7,0.52129435]
[1733339135275,9.0514,3832.5,3831.2,0.8517]
[1733339135570,11.66066,3832.5,3831.4,2.61]
[1733339136070,2.60933,3832.4,3831.6,0.52139873]
[1733339136291,2.6094,3832.3,3831.6,0.52139873]
[1733339136431,0.02611773,3832.2,3831.6,0.52139873]
[1733339136634,0.2614,3832.5,3831.6,0.52139873]
[1733339136950,0.55,3832.4,3831.6,0.52139873]
[1733339137148,2.6099,3831.6,3830.8,0.8267]
[1733339137468,0.2614,3831.5,3831.2,0.53068892]
[1733339137633,0.2614,3831.5,3830.5,2.61061]
[1733339137832,2.87135,3831.5,3830.6,0.343731]
[1733339138029,0.2614,3831.5,3830.6,0.343731]
[1733339138266,0.2614,3831.5,3830.5,2.61059]
[1733339138432,0.2614,3831.5,3830.4,0.8267]
[1733339138629,0.2614,3831.5,3830.7,0.53408141]
[1733339138875,0.02611773,3831.4,3830.3,2.61074]
[1733339139237,0.02611773,3831.4,3830.6,0.53226521]
[1733339139433,1.1948635,3831.4,3830.6,0.53226521]
[1733339139834,1.1948635,3831.4,3830.1,0.8644]
[1733339140059,9.0514,3831.5,3830.5,0.51932259]
[1733339140263,0.02611773,3831.3,3830.5,0.51932259]
[1733339140638,9.0514,3831.5,3830.5,3.12994259]
[1733339140954,9.0514,3831.5,3830.6,2.61054]
[1733339141148,9.0514,3831.5,3830.8,2.61035]
[1733339141374,9.0514,3831.5,3830.5,0.51932259]
[1733339141569,9.0514,3831.5,3830.6,0.31299726]
[1733339141753,9.0514,3831.5,3830.6,2.61054]
[1733339141754,0.02611773,3831.4,3830.6,2.61054]
[1733339142276,0.02611773,3831.4,3830.5,0.51932259]
[1733339142438,9.0514,3831.5,3830.5,0.51932259]
[1733339142439,8.79,3831.5,3830.8,0.8454]
[1733339142644,8.79,3831.5,3830.9,2.61035]
[1733339142944,8.79,3831.5,3831.4,2.61001]
[1733339143690,8.79,3831.5,3831.4,3.718111]
[1733339144042,8.79,3831.5,3831.4,4.24114953]
[1733339144641,8.79,3831.5,3831.4,0.78403953]
[1733339144846,8.79,3831.5,3831.4,0.52303853]
[1733339145042,2.87074,3832.4,3831.4,0.52303853]
[1733339145250,0.02611773,3832.3,3831.4,0.52303853]
[1733339145542,0.02611773,3832.3,3831.4,3.13303853]
[1733339145852,0.02611773,3832.3,3831.4,0.52303853]
[1733339146057,0.2614,3832.4,3831.6,2.60986]
[1733339147356,0.2614,3832.4,3831.7,0.8905]
[1733339147551,8.79,3833.4,3831.7,0.8905]
[1733339147552,0.2614,3832.8,3831.9,2.60966]
[1733339147760,0.2614,3832.8,3831.9,2.60962]
[1733339148452,0.28751773,3832.8,3831.7,0.8905]
[1733339148652,0.28751773,3832.8,3831.9,2.60966]
[1733339149178,0.28751773,3832.8,3830.7,0.26537386]
[1733339149179,2.87084,3832.3,3831.1,2.6102]
[1733339149376,0.2614,3832.3,3831.1,0.611106]
[1733339149603,0.2614,3832.3,3831.3,2.61007]
[1733339149752,0.2614,3832.3,3831.1,2.61021]
[1733339149952,0.2614,3832.3,3831.0,0.8905]
[1733339150272,0.2614,3832.3,3831.5,0.52898868]
[1733339150273,0.02611773,3832.2,3831.5,0.52898868]
[1733339150481,8.79,3832.1,3831.3,2.61002]
[1733339151452,8.79,3832.1,3831.0,0.8905]
[1733339151453,8.79,3832.1,3831.2,2.61009]
[1733339151602,0.2614,3832.3,3831.4,0.53134058]
[1733339152013,2.6091,3832.8,3831.4,0.53134058]
[1733339152014,0.2614,3831.8,3831.4,0.53134058]
[1733339152308,8.81611773,3831.7,3830.4,2.61067]
[1733339152464,8.81611773,3831.7,3830.0,3.45451]
[1733339152465,8.79,3831.7,3830.0,3.45451]
[1733339152799,8.79,3831.7,3830.8,2.61041]
[1733339154171,8.79,3831.7,3830.7,0.52967068]
[1733339154378,8.79,3831.7,3831.2,2.61014]
[1733339154686,8.79,3831.7,3830.8,0.86630213]
[1733339154687,8.79,3831.7,3831.3,2.61007]
[1733339156415,8.79,3831.7,3831.2,0.261014]
[1733339156610,9.0514,3832.1,3831.4,2.61001]
[1733339156974,9.0514,3832.1,3831.2,0.261014]
[1733339157180,9.0514,3832.1,3830.8,0.8402]
[1733339157181,0.02611773,3832.0,3831.1,2.61018]
[1733339157401,0.02611773,3832.0,3830.8,0.8402]
[1733339157606,0.2614,3831.9,3830.7,0.52967068]
[1733339157789,9.34,3831.8,3830.7,0.52967068]
[1733339158088,0.55,3832.0,3829.5,0.8532]
[1733339158089,0.2614,3831.0,3829.5,0.8532]
[1733339158309,0.55,3831.1,3829.3,2.61144]
[1733339158310,2.6107,3830.4,3829.3,2.61144]
[1733339158625,0.2614,3830.5,3829.3,2.61144]
[1733339158626,0.02611773,3830.3,3829.3,0.51352564]
[1733339158954,8.81611773,3830.3,3829.1,0.8128]
[1733339159084,0.2614,3830.1,3828.4,0.8128]
[1733339159425,2.61122,3829.7,3828.6,2.61191]
[1733339159613,0.02611773,3829.6,3828.6,2.61191]
[1733339160215,2.61111,3829.8,3828.9,0.52578847]
[1733339160386,0.55,3829.5,3828.9,0.52578847]
[1733339160586,2.61145,3829.3,3828.9,0.52578847]
[1733339160914,0.2614,3829.1,3828.0,2.61232]
[1733339161231,0.55,3829.0,3827.5,0.8084]
[1733339161520,0.55,3829.0,3828.4,0.51342127]
[1733339162327,0.02611773,3828.9,3828.4,0.51342127]
[1733339162699,2.63784773,3828.9,3828.4,0.51342127]
[1733339162904,0.55,3828.8,3828.4,0.51342127]
[1733339163330,0.55,3829.0,3828.4,0.51342127]
[1733339163539,9.0514,3829.1,3828.4,0.51342127]
[1733339163814,8.79,3829.1,3828.4,0.51342127]
[1733339164147,2.61058,3830.6,3828.4,0.51342127]
[1733339164148,0.2895,3829.6,3828.5,0.8453]
[1733339164318,0.2895,3829.6,3829.1,2.61156]
[1733339164502,0.2895,3829.6,3828.6,2.74773213]
[1733339164503,8.79,3829.9,3828.7,0.02611586]
[1733339164851,8.79,3829.9,3828.6,0.13587213]
[1733339165002,0.02611773,3829.8,3829.0,0.53021776]
[1733339165402,8.79,3829.9,3828.7,2.61185]
[1733339165726,8.79,3829.9,3828.9,2.61171]
[1733339166032,0.2895,3830.8,3829.4,0.51658627]
[1733339166228,0.02611773,3830.7,3829.7,2.61113]
[1733339166477,0.02611773,3830.7,3829.4,0.51658627]
[1733339166478,8.81611773,3830.7,3829.4,0.51658627]
[1733339166633,8.79,3830.7,3829.4,0.51658627]
[1733339166938,8.79,3830.7,3830.0,2.61093]
[1733339167151,0.2895,3830.8,3830.0,2.61093]
[1733339170139,8.79,3831.1,3829.9,0.8373]
[1733339170363,8.79,3830.7,3829.9,0.53070269]
[1733339170668,8.79,3830.7,3829.4,0.8345]
[1733339170959,0.02611773,3830.6,3829.7,0.51613643]
[1733339171175,0.8395,3830.4,3828.9,0.8345]
[1733339171341,0.2895,3829.7,3828.6,2.74778213]
[1733339171524,0.2895,3829.7,3828.7,2.61184]
[1733339171724,0.31561773,3829.7,3828.7,2.61184]
[1733339171929,0.55,3829.6,3828.5,2.61197]
[1733339172173,3.5350365,3829.6,3828.5,2.61197]
[1733339172466,3.5350365,3829.6,3828.4,0.8345]
[1733339172467,0.89767877,3829.6,3828.4,0.8345]
[1733339172667,0.89767877,3829.6,3828.6,2.61187]
[1733339172826,0.02611773,3829.5,3828.8,0.51979105]
[1733339173027,8.79,3829.6,3828.8,0.51979105]
[1733339173236,8.79,3829.6,3829.3,2.61142]
[1733339173540,8.79,3829.6,3829.3,2.6114]
[1733339173743,8.79,3829.6,3829.1,2.61156]
[1733339174359,8.79,3829.6,3828.8,0.51979105]
[1733339174562,0.02611773,3829.5,3828.9,2.6117]
[1733339174776,8.79,3829.6,3828.8,2.61174]
[1733339175061,0.02611773,3829.5,3828.8,2.61174]
[1733339175764,0.02611773,3829.5,3828.8,2.872914]
[1733339175967,0.1872,3829.4,3828.6,0.52563844]
[1733339176167,0.1872,3829.4,3827.9,1.1499]
[1733339176168,0.02611773,3829.3,3827.9,0.8888]
[1733339176372,8.81611773,3829.3,3828.0,0.51686735]
[1733339176585,8.79,3829.3,3829.2,2.61151]
[1733339176892,8.79,3830.0,3828.9,0.8888]
[1733339177029,8.79,3830.6,3829.6,2.61122]
[1733339177228,8.79,3830.6,3828.9,0.8888]
[1733339177477,8.79,3830.6,3829.6,0.51724047]
[1733339177634,8.9772,3830.7,3829.8,0.896]
[1733339177845,8.79,3830.7,3829.8,1.03732405]
[1733339178149,8.79,3830.6,3830.4,2.61064]
[1733339178341,8.79,3831.0,3829.9,2.61103]
[1733339178556,8.79,3830.6,3829.9,0.02610921]
[1733339178757,8.79,3830.6,3830.5,2.61062]
[1733339178962,8.79,3831.5,3830.7,2.61046]
[1733339179135,8.79,3831.5,3830.8,2.6104]
[1733339179472,1.63260679,3831.6,3831.1,2.6102]
[1733339179767,10.42260679,3831.6,3830.4,0.846]
[1733339179980,10.42260679,3831.6,3831.3,2.61006]
[1733339180131,1.63260679,3831.6,3831.5,2.60994]
[1733339181336,1.63260679,3831.6,3831.5,3.27101753]
[1733339182038,6.79e-06,3831.6,3831.5,3.27101753]
[1733339182263,1.08840452,3831.7,3831.6,2.60987]
[1733339182572,2.17680905,3832.1,3832.0,2.6096]
[1733339184467,2.17680905,3832.1,3831.6,2.60983]
[1733339184670,0.02611773,3832.0,3831.7,2.60978]
[1733339184875,2.17680905,3832.1,3831.4,0.8557]
[1733339185191,2.17680905,3832.1,3831.9,0.52005717]
[1733339185391,2.17680905,3832.1,3832.0,2.6096]
[1733339185593,2.17680905,3832.1,3831.9,0.52005717]
[1733339185909,2.17680905,3832.1,3832.0,2.6096]
[1733339186073,2.17680905,3832.1,3832.0,2.92256572]
[1733339187700,2.17680905,3832.1,3831.9,0.52005717]
[1733339188260,0.1872,3832.2,3831.9,0.52005717]
[1733339188776,8.79,3832.1,3831.9,0.52005717]
[1733339189087,8.79,3832.1,3831.6,0.51144782]
[1733339189704,8.79,3832.1,3831.3,2.61005]
[1733339190495,8.79,3832.1,3831.0,0.8187]
[1733339191005,8.79,3832.1,3831.4,2.60994]
[1733339191696,8.79,3832.1,3831.6,0.51993799]
[1733339191859,0.89772,3832.0,3831.6,0.51993799]
[1733339192061,0.02611773,3831.9,3831.6,0.51993799]
[1733339192373,8.81611773,3831.9,3830.9,0.52781821]
[1733339192575,8.79,3831.9,3830.9,0.52781821]
[1733339192773,0.02611773,3831.8,3830.9,0.52781821]
[1733339192978,0.77676289,3831.8,3830.9,0.52781821]
[1733339193609,0.77676289,3831.8,3830.9,3.13814821]
[1733339193903,8.79,3831.9,3830.9,0.52781821]
[1733339194801,8.79,3831.9,3830.9,3.13816821]
[1733339194964,8.79,3831.9,3830.9,0.52781821]
[1733339195165,8.79,3831.9,3830.6,0.8158]
[1733339195364,8.79,3831.9,3830.8,2.61035]
[1733339195585,9.948673,3831.9,3830.8,3.13242765]
[1733339195792,9.948673,3831.9,3830.8,0.52207765]
[1733339196278,8.79,3831.8,3830.8,0.52207765]
[1733339196674,8.79,3831.8,3829.6,0.52059158]
[1733339196675,8.79,3831.8,3830.2,0.8239]
[1733339196873,2.60998,3831.5,3830.4,0.5181074]
[1733339197092,8.79,3831.8,3830.5,0.0261042]
[1733339197264,8.79,3831.8,3830.9,2.61028]
[1733339197480,8.79,3832.1,3831.1,2.6102]
[1733339197675,11.39954,3832.1,3830.9,2.61033]
[1733339197876,11.39954,3832.1,3830.6,2.61055]
[1733339198088,12.539494,3832.1,3830.8,2.6104]
[1733339198615,9.929954,3832.1,3830.7,0.35239281]
[1733339198784,9.929954,3832.1,3830.4,0.91337814]
[1733339198785,2.60961,3832.0,3830.4,0.91337814]
[1733339199103,2.60961,3832.0,3830.7,2.61048]
[1733339199817,9.929954,3832.1,3830.4,3.52402814]
[1733339199965,12.539494,3832.1,3830.8,2.6104]
[1733339200411,2.80961,3832.0,3830.8,2.6104]
[1733339200616,2.80961,3832.0,3830.4,3.52402814]
[1733339200617,0.2,3832.0,3830.6,2.61055]
[1733339200918,0.2,3832.0,3831.9,3.38147]
[1733339201064,0.2,3832.0,3831.9,2.60967]
[1733339201266,0.2,3832.0,3831.5,0.8001]
[1733339201468,0.2,3832.0,3830.6,0.8001]
[1733339201695,0.2,3832.0,3831.5,2.6099]
[1733339202006,0.2,3832.0,3831.4,0.7934]
[1733339202302,0.2,3832.0,3831.9,2.60967]
[1733339202507,0.2,3832.0,3831.4,0.7934]
[1733339202508,0.2,3832.0,3831.8,2.60971]
[1733339202868,0.2,3832.0,3831.9,2.60967]
[1733339203977,0.2,3832.0,3831.9,2.870637]
[1733339206873,0.2,3832.0,3831.9,3.40305756]
[1733339207877,0.2,3832.0,3831.9,4.19305756]
[1733339214996,3.55,3834.2,3832.7,2.60912]
[1733339215227,2.60837,3833.9,3832.7,2.60912]
[1733339215443,3.55,3834.2,3831.9,1.58338756]
[1733339215444,0.55,3833.6,3831.9,1.58338756]
[1733339215817,0.55,3833.6,3832.6,2.60913]
[1733339216460,0.02611773,3833.5,3832.4,2.6093]
[1733339216773,0.55,3833.4,3832.4,2.6093]
[1733339216968,0.02611773,3833.3,3832.4,2.6093]
[1733339217118,0.55,3833.4,3832.0,2.6096]
[1733339217462,0.55,3833.4,3832.1,0.3660567]
[1733339217660,0.55,3833.4,3832.4,0.52517233]
[1733339218043,0.55,3833.4,3832.6,2.60915]
[1733339218244,0.57611773,3833.4,3832.6,2.60915]
[1733339218461,0.55,3833.4,3832.6,2.60916]
[1733339218663,0.55,3833.4,3832.4,0.52517233]
[1733339218963,1.77096873,3833.4,3832.4,0.52517233]
[1733339219162,4.37961873,3833.4,3832.4,0.52517233]
[1733339219364,1.744851,3833.4,3832.4,0.52517233]
[1733339219660,8.79,3833.5,3832.4,0.52517233]
[1733339219661,8.79,3833.5,3832.7,2.60906]
[1733339220430,8.79,3833.5,3832.8,2.60903]
[1733339220634,8.79,3833.5,3832.4,0.52517233]
[1733339220839,8.79,3833.5,3832.7,2.60911]
[1733339221521,8.79,3833.5,3832.4,0.52517233]
[1733339221723,0.55,3833.3,3832.4,0.52517233]
[1733339221926,8.79,3833.5,3832.8,2.60905]
[1733339222123,8.79,3833.5,3833.0,2.60889]
[1733339222559,8.79,3833.5,3833.1,2.60884]
[1733339223060,5.60786,3834.6,3832.6,0.7778]
[1733339223061,8.79,3834.0,3832.6,0.7778]
[1733339223263,8.79,3834.0,3833.4,2.60858]
[1733339223416,8.79,3834.0,3832.6,0.7778]
[1733339223417,2.60771,3834.8,3833.7,2.60844]
[1733339223619,2.60771,3834.8,3833.0,0.53006767]
[1733339223822,8.79,3834.7,3833.8,2.60831]
[1733339224067,8.79,3834.7,3833.9,2.6083]
[1733339224266,8.79,3834.6,3833.4,0.7672]
[1733339224770,8.79,3834.6,3833.8,3.12434261]
[1733339224927,9.929772,3834.6,3833.8,0.51598261]
[1733339225122,8.79,3834.5,3833.7,2.60844]
[1733339225352,8.79,3834.5,3833.2,2.60878]
[1733339225562,8.79,3834.5,3833.1,0.7584]
[1733339225563,2.63414773,3834.4,3833.4,0.52881567]
[1733339225925,0.57611773,3834.4,3833.4,0.52881567]
[1733339226129,0.57611773,3834.4,3833.0,2.60885]
[1733339226130,2.60817,3834.2,3833.0,2.60885]
[1733339226358,0.02611773,3834.1,3832.7,2.60907]
[1733339226686,0.55,3834.3,3833.1,0.52412065]
[1733339226687,8.79,3833.7,3833.1,0.52412065]
[1733339227301,8.79,3833.7,3831.9,0.8264]
[1733339227302,2.6088,3833.2,3831.9,0.8264]
[1733339227471,0.02611773,3833.1,3832.2,2.6094]
[1733339227671,0.02611773,3833.1,3832.6,0.51838229]
[1733339228015,0.88161177,3833.0,3832.6,0.51838229]
[1733339228217,8.79,3833.2,3832.6,0.51838229]
[1733339228387,8.79,3833.2,3832.6,3.12756229]
[1733339228583,8.79,3833.2,3832.6,0.51838229]
[1733339228922,8.79,3833.2,3832.8,2.60904]
[1733339229612,8.79,3833.2,3832.6,0.51838229]
[1733339229814,8.79,3833.2,3832.9,2.60898]
[1733339230010,8.79,3833.2,3832.8,2.609]
[1733339230188,8.79,3833.2,3832.9,0.31273823]
[1733339230828,8.79,3834.1,3833.0,2.6089]
[1733339231006,8.79,3834.1,3832.9,0.31273823]
[1733339231180,8.79,3834.1,3833.2,2.60874]
[1733339231380,8.79,3834.1,3832.7,2.60912]
[1733339231689,5.1633103,3835.0,3833.2,2.60874]
[1733339231690,8.79,3834.9,3833.2,2.60874]
[1733339232012,2.60817,3834.1,3832.6,0.8264]
[1733339232221,2.60817,3834.1,3833.4,0.51998048]
[1733339232421,2.868987,3834.1,3833.4,0.51998048]
[1733339232578,0.260817,3834.1,3833.4,0.51998048]
[1733339232778,2.60804,3834.3,3833.4,0.51998048]
[1733339232974,8.79,3834.4,3833.4,0.51998048]
[1733339232975,8.79,3834.4,3833.6,2.60848]
[1733339233218,8.79,3834.4,3833.4,3.12860048]
[1733339233407,11.39797,3834.4,3833.4,3.12860048]
[1733339233795,8.79,3834.4,3833.5,2.60855]
[1733339234209,8.79,3834.4,3833.4,0.51998048]
[1733339234494,8.79,3834.4,3833.5,2.60857]
[1733339234755,8.79,3834.4,3833.6,2.60846]
[1733339234966,8.79,3834.4,3833.4,0.83284853]
[1733339234967,8.79,3834.4,3833.4,3.44147853]
[1733339235257,8.79,3834.4,3833.4,0.83284853]
[1733339235455,8.79,3834.4,3833.4,3.44148853]
[1733339235594,8.79,3834.4,3833.6,2.6085]
[1733339236201,8.79,3834.4,3833.4,0.83284853]
[1733339236668,8.79,3834.4,3833.4,0.51998048]
[1733339236797,8.79,3834.4,3833.4,3.12863048]
[1733339237388,8.79,3834.4,3833.4,0.51998048]
[1733339237984,0.57611773,3834.3,3833.0,2.60885]
[1733339238208,8.79,3834.2,3832.7,0.2611]
[1733339238421,2.60831,3833.9,3832.8,2.60899]
[1733339238639,2.60831,3833.9,3832.9,2.60898]
[1733339238842,0.55,3834.0,3832.7,0.2611]
[1733339239110,8.79,3834.2,3833.1,0.50960429]
[1733339239329,8.79,3834.2,3833.3,2.60871]
[1733339239631,8.79,3834.2,3833.1,0.50960429]
[1733339239831,8.79,3834.2,3833.6,2.6085]
[1733339240143,8.79,3834.2,3833.1,0.50960429]
[1733339240144,8.79,3834.2,3833.4,2.60859]
[1733339240322,8.79,3834.2,3833.2,2.60878]
[1733339240532,0.55,3834.6,3833.7,2.60844]
[1733339240750,8.79,3834.9,3833.4,0.7997]
[1733339240953,5.1633103,3835.0,3834.8,2.60769]
[1733339241367,5.1633103,3835.0,3834.4,0.7997]
[1733339241541,5.1633103,3835.0,3834.7,2.60775]
[1733339241814,5.1633103,3835.0,3834.9,2.60762]
[1733339241984,5.1633103,3835.0,3834.4,0.7997]
[1733339242302,2.42143006,3835.0,3834.9,3.36032]
[1733339242475,0.98947006,3835.0,3834.9,4.48801344]
[1733339244204,0.98947006,3835.0,3834.9,0.53088344]
[1733339244511,0.98947006,3835.0,3834.3,0.8139]
[1733339245178,0.98947006,3835.0,3834.7,0.51513199]
[1733339246423,0.98947006,3835.0,3834.8,0.7932]
[1733339248172,0.98947006,3835.0,3834.9,2.60762]
[1733339248381,0.98947006,3835.0,3834.9,3.7994152]
[1733339249436,0.75,3835.6,3835.1,0.7846]
[1733339249806,0.75,3835.6,3835.5,2.60722]
[1733339250002,0.75,3835.6,3835.5,0.7809]
[1733339251058,0.75,3835.6,3835.5,1.30835716]
[1733339251196,0.75,3835.6,3835.5,1.43919288]
[1733339253131,0.75,3835.6,3835.5,0.65829288]
[1733339253427,0.75,3835.6,3834.8,0.7637]
[1733339253627,0.75,3835.6,3835.4,0.52043775]
[1733339255024,0.75,3835.6,3835.5,3.37642]
[1733339255174,8.79,3838.0,3835.6,0.7692]
[1733339255380,2.60615,3837.1,3835.7,2.60708]
[1733339255579,8.79,3837.8,3835.6,0.79526253]
[1733339255793,8.79,3838.0,3835.6,0.79526253]
[1733339255988,11.39566,3837.8,3836.7,0.51105486]
[1733339256302,11.39567,3837.8,3836.7,0.51105486]
[1733339256482,11.39567,3837.8,3836.8,0.02606012]
[1733339256684,2.6058,3837.6,3836.7,0.89920435]
[1733339256913,2.6058,3837.6,3836.7,0.51105486]
[1733339257115,2.60572,3837.8,3836.7,0.51105486]
[1733339257523,8.79,3838.0,3836.7,0.51105486]
[1733339257853,11.39555,3838.0,3836.7,3.11745486]
[1733339258029,2.60559,3837.9,3836.7,0.51105486]
[1733339258216,2.60559,3837.9,3836.8,0.38814249]
[1733339258416,8.79,3838.0,3836.8,2.60633]
[1733339258656,5.93551,3838.1,3837.0,2.60613]
[1733339258657,3.33,3838.1,3837.0,2.60613]
[1733339259338,3.33,3838.1,3837.4,0.8071]
[1733339259527,3.33,3838.1,3837.6,2.60578]
[1733339259729,3.33,3838.1,3837.7,0.8071]
[1733339259940,3.33,3838.1,3837.8,0.341288]
[1733339260328,3.33,3838.1,3837.7,0.8071]
[1733339260329,3.33,3838.1,3837.7,3.41282]
[1733339260553,3.33,3838.1,3837.7,1.33248983]
[1733339260927,3.33,3838.1,3838.0,2.60552]
[1733339261457,3.33,3838.1,3838.0,3.40142]
[1733339263050,2.4774,3838.1,3838.0,3.95142]
[1733339263261,0.0307,3838.1,3838.0,7.65966898]
[1733339263468,3.01908486,3839.1,3839.0,2.60484]
[1733339263616,3.01908486,3839.1,3839.0,3.36534]
[1733339264387,0.75,3839.5,3839.4,3.38497]
[1733339264752,0.75,3839.5,3839.4,0.7804]
[1733339264953,0.75,3839.5,3839.4,3.38497]
[1733339265152,0.75,3839.5,3839.4,3.723467]
[1733339266479,13.32,3840.1,3839.5,0.7766]
[1733339267959,13.32,3840.1,3839.5,3.38109]
[1733339268501,13.32,3840.1,3839.5,0.7766]
[1733339269276,14.1013,3840.1,3839.4,0.53281611]
[1733339269559,2.60461,3839.4,3838.4,0.8328]
[1733339269804,2.60478,3839.1,3837.7,0.8328]
[1733339270005,9.5602,3839.6,3838.6,0.51344666]
[1733339270377,2.60478,3839.1,3838.6,0.51344666]
[1733339270574,2.60478,3839.1,3837.7,3.43846]
[1733339270575,0.7702,3838.8,3837.7,0.8328]
[1733339271215,0.7702,3838.8,3836.2,0.571035]
[1733339271216,0.8019,3838.5,3836.3,0.78195303]
[1733339271359,2.60545,3838.2,3836.8,2.60632]
[1733339271563,2.60525,3838.4,3837.0,2.60619]
[1733339271775,2.60525,3838.4,3836.3,0.78195392]
[1733339271776,0.8019,3838.5,3837.1,2.866689]
[1733339271970,0.8019,3838.5,3837.2,3.12282903]
[1733339272176,0.8019,3838.5,3837.3,2.60596]
[1733339272378,0.8019,3838.5,3837.2,0.51677903]
[1733339272579,3.4071,3838.5,3837.2,0.51677903]
[1733339272803,3.4071,3838.5,3837.3,0.3122879]
[1733339273000,9.5919,3838.5,3837.3,2.9182679]
[1733339273369,9.5919,3838.5,3837.3,0.3122879]
[1733339273565,9.5919,3838.5,3837.4,2.60593]
[1733339273805,8.79,3838.5,3837.4,0.02605325]
[1733339274003,0.8019,3839.0,3837.5,0.16516202]
[1733339274176,0.8019,3839.5,3837.8,2.60565]
[1733339274376,0.8019,3839.5,3838.6,2.60511]
[1733339274594,0.8019,3839.5,3838.5,0.7548]
[1733339274595,14.72432,3839.8,3838.5,0.7548]
[1733339274795,14.72432,3839.8,3838.5,1.28280516]
[1733339274796,12.12,3839.8,3838.5,1.28280516]
[1733339274984,12.12,3839.8,3838.5,0.52800516]
[1733339274985,5.93443,3839.7,3838.5,0.52800516]
[1733339275312,3.33,3839.7,3838.5,0.92385468]
[1733339275611,3.33,3839.7,3838.5,0.52800516]
[1733339276409,3.33,3839.7,3838.6,2.6051]
[1733339276705,3.33,3839.7,3838.8,2.60496]
[1733339276941,3.33,3839.7,3838.5,0.52800516]
[1733339277230,3.33,3839.7,3838.6,0.55]
[1733339277527,3.33,3839.7,3839.6,2.60443]
[1733339279173,0.37810456,3839.7,3839.6,2.60443]
[1733339281993,0.37810456,3839.7,3839.0,6.41159]
[1733339282318,0.37810456,3839.7,3839.4,2.60456]
[1733339282795,0.37810456,3839.7,3839.0,6.41159]
[1733339282796,0.37810456,3839.7,3839.0,3.8068]
[1733339282995,0.37810456,3839.7,3839.2,0.52213026]
[1733339283991,0.37810456,3839.7,3839.6,2.60443]
[1733339284411,0.37810456,3839.7,3839.6,3.42063]
[1733339284808,2.86171875,3839.8,3839.7,2.60437]
[1733339285126,2.86171875,3839.8,3839.7,5.60437]
[1733339285294,2.86171875,3839.8,3839.7,6.50687]
[1733339286131,1.41339282,3839.8,3839.7,6.50687]
[1733339287338,19.98,3839.9,3839.8,6.9846]
[1733339287339,18.16694547,3839.9,3839.8,6.9846]
[1733339287634,14.26058547,3839.9,3839.8,6.9846]
[1733339287809,13.69972356,3839.9,3839.8,6.9846]
[1733339288004,13.69972356,3839.9,3839.8,8.053753]
[1733339288005,11.74092356,3839.9,3839.8,8.053753]
[1733339288399,5.00514618,3840.4,3840.0,5.60416]
[1733339288642,4.58227174,3840.4,3840.3,3.40886]
[1733339289640,4.58227174,3840.4,3840.3,6.40886]
[1733339290446,4.58227174,3840.4,3840.3,3.40886]
[1733339290607,4.58227174,3840.4,3840.3,4.03692335]
[1733339291128,1.74e-06,3840.4,3840.3,4.03692335]
[1733339292016,1.74e-06,3840.4,3840.3,7.29802335]
[1733339292255,1.74e-06,3840.4,3840.3,7.58692335]
[1733339292459,3.48045174,3840.5,3840.4,5.60389]
[1733339292626,3.48045174,3840.5,3840.4,6.62297133]
[1733339293038,2.17854174,3840.5,3840.4,6.62297133]
[1733339293240,7.38624174,3840.6,3840.4,4.01908133]
[1733339293468,7.38624174,3840.6,3840.5,6.15382]
[1733339294158,0.87684174,3840.6,3840.5,6.98392]
[1733339294363,0.87684174,3840.6,3840.5,8.15838289]
[1733339294858,3.3194105,3840.9,3840.8,2.60362]
[1733339295020,3.3194105,3840.9,3840.8,3.43372]